fUST/lending_fUST_20250627
["ID","MTS","AMOUNT","RATE_DAILY","PERIOD"]
[367920209,1750965053500,-317.0,0.00021725,2]
[367920210,1750965053509,-317.0,0.00021725,2]
[367920211,1750965053519,-317.0,0.00021725,2]
[367920212,1750965053528,-317.0,0.00021725,2]
[367920213,1750965053538,-317.0,0.00021725,2]
[367920214,1750965053548,-317.0,0.00021725,2]
[367920215,1750965053558,-317.0,0.00021725,2]
[367920216,1750965053567,-317.0,0.00021725,2]
[367920217,1750965053580,-317.0,0.00021725,2]
[367920218,1750965053590,-317.0,0.00021725,2]
[367920219,1750965053600,-317.0,0.00021725,2]
[367920220,1750965053611,-317.0,0.00021725,2]
[367920221,1750965053621,-317.0,0.00021725,2]
[367920222,1750965053632,-317.0,0.00021725,2]
[367920223,1750965053642,-317.0,0.00021725,2]
[367920224,1750965053653,-317.0,0.00021725,2]
[367920225,1750965053665,-317.0,0.00021725,2]
[367920226,1750965053675,-317.0,0.00021725,2]
[367920227,1750965053685,-317.0,0.00021725,2]
[367920228,1750965053696,-317.0,0.00021725,2]
[367920229,1750965053705,-317.0,0.00021725,2]
[367920230,1750965053715,-317.0,0.00021725,2]
[367920231,1750965053724,-317.0,0.00021725,2]
[367920232,1750965053734,-317.0,0.00021725,2]
[367920233,1750965053743,-317.0,0.00021725,2]
[367920234,1750965053752,-317.0,0.00021725,2]
[367920235,1750965053763,-317.0,0.00021725,2]
[367920236,1750965053772,-317.0,0.00021725,2]
[367920237,1750965053783,-317.0,0.00021725,2]
[367920238,1750965053797,-251.12338554,0.00021725,2]
[367920239,1750965053806,-1441.43817765,0.00021762,5]
[367920240,1750965053816,-151.0,0.00021779,2]
[367920241,1750965053826,-151.0,0.00021779,2]
[367920242,1750965053835,-151.0,0.00021779,2]
[367920243,1750965053845,-151.0,0.00021779,2]
[367920244,1750965053854,-194.649607,0.00021779,2]
[367920245,1750965053864,-359.23661,0.00021779,2]
[367920246,1750965053873,-359.236619,0.00021779,2]
[367920247,1750965053883,-151.0,0.0002178,2]
[367920248,1750965053892,-151.0,0.0002178,2]
[367920249,1750965053902,-276.508692,0.0002178,2]
[367920250,1750965053911,-151.0,0.0002178,2]
[367920251,1750965053921,-271.102295,0.0002178,2]
[367920252,1750965053930,-151.0,0.0002178,2]
[367920253,1750965053940,-151.0,0.0002178,2]
[367920254,1750965053949,-151.0,0.0002178,2]
[367920255,1750965053958,-156.042529,0.0002178,2]
[367920256,1750965053968,-151.0,0.0002178,2]
[367920257,1750965053978,-151.0,0.0002178,2]
[367920258,1750965053989,-176.816401,0.0002178,2]
[367920259,1750965053998,-176.816401,0.0002178,2]
[367920260,1750965054008,-176.816401,0.0002178,2]
[367920261,1750965054018,-176.816392,0.0002178,2]
[367920262,1750965054027,-151.0,0.0002178,2]
[367920263,1750965054036,-415.497308,0.0002178,2]
[367920264,1750965054046,-415.497299,0.0002178,2]
[367920265,1750965054056,-1721.010829,0.0002178,5]
[367920266,1750965054066,-1935.0,0.000218,2]
[367920267,1750965054075,-151.0,0.000218,4]
[367920268,1750965054084,-1000.0,0.000218,5]
[367920269,1750965054094,-842.87737309,0.000218,2]
[367920270,1750965054103,-1000.0,0.0002182,5]
[367920271,1750965054113,-1904.5678601,0.00021821,2]
[367920272,1750965054122,-1000.0,0.0002184,5]
[367920273,1750965054131,-800.0,0.00021856,2]
[367920274,1750965054142,-1000.0,0.0002186,5]
[367920275,1750965054153,-1000.0,0.0002188,5]
[367920276,1750965054163,-2263.89,0.00021887,2]
[367920277,1750965054172,-2612.01,0.000219,2]
[367920278,1750965054182,-151.0,0.000219,3]
[367920279,1750965054191,-1000.0,0.000219,5]
[367920280,1750965054201,-7516.11865376,0.000219,2]
[367920281,1750965054212,-282.18117478,0.00021916,2]
[367920282,1750965054222,-200.0,0.00021916,2]
[367920283,1750965054232,-151.0,0.00021917,2]
[367920284,1750965054241,-151.0,0.00021917,2]
[367920285,1750965054250,-151.0,0.00021917,2]
[367920286,1750965054259,-151.0,0.00021917,2]
[367920287,1750965054269,-151.0,0.00021917,2]
[367920288,1750965054278,-157.859101,0.00021917,2]
[367920289,1750965054287,-460.0,0.00021917,2]
[367920290,1750965054297,-151.0,0.00021917,2]
[367920291,1750965054306,-151.0,0.00021917,2]
[367920292,1750965054315,-297.91618109,0.00021917,2]
[367920293,1750965054324,-460.0,0.00021917,2]
[367920294,1750965054333,-153.940601,0.00021917,2]
[367920295,1750965054342,-460.0,0.00021917,2]
[367920296,1750965054351,-460.0,0.00021917,2]
[367920297,1750965054360,-460.0,0.00021917,2]
[367920298,1750965054369,-430.0,0.00021917,2]
[367920299,1750965054379,-400.0,0.00021917,2]
[367920300,1750965054388,-460.0,0.00021917,2]
[367920301,1750965054398,-460.0,0.00021917,2]
[367920302,1750965054407,-353.36371504,0.00021917,2]
[367920303,1750965054417,-460.0,0.00021917,2]
[367920304,1750965054426,-151.0,0.00021917,2]
[367920305,1750965054435,-151.0,0.00021917,2]
[367920306,1750965054444,-460.0,0.00021917,2]
[367920307,1750965054453,-469.80510097,0.00021917,2]
[367920308,1750965054463,-460.68885412,0.00021917,2]
[367920309,1750965054472,-460.0,0.00021917,2]
[367920310,1750965054481,-349.90576962,0.00021917,2]
[367920311,1750965054490,-203.93926588,0.00021917,2]
[367920312,1750965054499,-460.0,0.00021917,2]
[367920313,1750965054508,-151.0,0.00021917,2]
[367920314,1750965054517,-151.0,0.00021917,2]
[367920315,1750965054526,-460.0,0.00021917,2]
[367920316,1750965054535,-430.0,0.00021917,2]
[367920317,1750965054545,-430.0,0.00021917,2]
[367920318,1750965054554,-460.0,0.00021917,2]
[367920319,1750965054563,-460.0,0.00021917,2]
[367920320,1750965054572,-460.0,0.00021917,2]
[367920321,1750965054584,-460.0,0.00021917,2]
[367920322,1750965054593,-460.0,0.00021917,2]
[367920323,1750965054603,-153.39816584,0.00021917,2]
[367920324,1750965054613,-430.73279694,0.00021917,2]
[367920325,1750965054625,-460.0,0.00021917,2]
[367920326,1750965054634,-460.0,0.00021917,2]
[367920327,1750965054644,-460.0,0.00021917,2]
[367920328,1750965054654,-460.0,0.00021917,2]
[367920329,1750965054664,-460.0,0.00021917,2]
[367920330,1750965054673,-460.0,0.00021917,2]
[367920331,1750965054682,-460.0,0.00021917,2]
[367920332,1750965054691,-460.0,0.00021917,2]
[367920333,1750965054700,-460.0,0.00021917,2]
[367920334,1750965054709,-460.0,0.00021917,2]
[367920335,1750965054718,-431.34714507,0.00021917,2]
[367920336,1750965054727,-579.63,0.00021917,2]
[367920337,1750965054737,-460.0,0.00021917,2]
[367920338,1750965054747,-446.19674032,0.00021917,2]
[367920339,1750965054756,-430.0,0.00021917,2]
[367920340,1750965054765,-460.0,0.00021917,2]
[367920341,1750965054774,-460.0,0.00021917,2]
[367920342,1750965054783,-460.0,0.00021917,2]
[367920343,1750965054793,-460.0,0.00021917,2]
[367920344,1750965054802,-460.0,0.00021917,2]
[367920345,1750965054812,-460.0,0.00021917,2]
[367920346,1750965054821,-460.0,0.00021917,2]
[367920347,1750965054831,-460.0,0.00021917,2]
[367920348,1750965054840,-460.0,0.00021917,2]
[367920349,1750965054849,-460.0,0.00021917,2]
[367920350,1750965054859,-460.0,0.00021917,2]
[367920351,1750965054868,-460.0,0.00021917,2]
[367920352,1750965054877,-460.0,0.00021917,2]
[367920353,1750965054886,-460.0,0.00021917,2]
[367920354,1750965054896,-460.0,0.00021917,2]
[367920355,1750965054905,-460.0,0.00021917,2]
[367920356,1750965054914,-502.60675646,0.00021917,2]
[367920357,1750965054924,-460.0,0.00021917,2]
[367920358,1750965054933,-460.0,0.00021917,2]
[367920359,1750965054945,-460.0,0.00021917,2]
[367920360,1750965054954,-460.0,0.00021917,2]
[367920361,1750965054964,-460.0,0.00021917,2]
[367920362,1750965054974,-460.0,0.00021917,2]
[367920363,1750965054983,-460.0,0.00021917,2]
[367920364,1750965054992,-244.41526672,0.00021917,2]
[367920365,1750965055390,-215.58473328,0.00021917,2]
[367920366,1750965055399,-460.0,0.00021917,2]
[367920367,1750965055408,-460.0,0.00021917,2]
[367920368,1750965055418,-460.0,0.00021917,2]
[367920369,1750965055427,-460.0,0.00021917,2]
[367920370,1750965055437,-460.0,0.00021917,2]
[367920371,1750965055446,-387.89080259,0.00021917,2]
[367920372,1750965055456,-460.0,0.00021917,2]
[367920373,1750965055465,-452.94846142,0.00021917,2]
[367920374,1750965055474,-460.0,0.00021917,2]
[367920375,1750965055483,-460.0,0.00021917,2]
[367920376,1750965055492,-460.0,0.00021917,2]
[367920377,1750965055502,-460.0,0.00021917,2]
[367920378,1750965055511,-244.06427893,0.00021917,2]
[367920379,1750965055520,-478.35805925,0.00021917,2]
[367920380,1750965055529,-460.0,0.00021917,2]
[367920381,1750965055539,-460.0,0.00021917,2]
[367920382,1750965055548,-197.58010068,0.00021917,2]
[367920383,1750965055557,-460.0,0.00021917,2]
[367920384,1750965055566,-460.0,0.00021917,2]
[367920385,1750965055577,-460.0,0.00021917,2]
[367920386,1750965055587,-460.0,0.00021917,2]
[367920387,1750965055596,-460.0,0.00021917,2]
[367920388,1750965055605,-460.0,0.00021917,2]
[367920389,1750965055614,-460.0,0.00021917,2]
[367920390,1750965055625,-460.0,0.00021917,2]
[367920391,1750965055634,-444.78982379,0.00021917,2]
[367920392,1750965055644,-460.0,0.00021917,2]
[367920393,1750965055654,-496.73,0.00021917,2]
[367920394,1750965055665,-460.0,0.00021917,2]
[367920395,1750965055674,-92.09610104,0.00021917,2]
[367920396,1750965055688,-367.90389896,0.00021917,2]
[367920397,1750965055698,-460.0,0.00021917,2]
[367920398,1750965055708,-460.0,0.00021917,2]
[367920399,1750965055717,-500.0,0.00021917,2]
[367920400,1750965055727,-460.0,0.00021917,2]
[367920401,1750965055736,-460.0,0.00021917,2]
[367920402,1750965055745,-460.0,0.00021917,2]
[367920403,1750965055755,-41.68761079,0.00021917,2]
[367920404,1750965055949,-377.0364096,0.00021643,2]
[367920405,1750965055958,-460.0,0.00021643,2]
[367920406,1750965055968,-460.0,0.00021643,2]
[367920407,1750965055977,-418.31238921,0.00021917,2]
[367920408,1750965055986,-460.0,0.00021917,2]
[367920409,1750965055996,-460.0,0.00021917,2]
[367920410,1750965056006,-460.0,0.00021917,2]
[367920411,1750965056015,-469.72503306,0.00021917,2]
[367920412,1750965056024,-460.0,0.00021917,2]
[367920413,1750965056033,-460.0,0.00021917,2]
[367920414,1750965056044,-460.0,0.00021917,2]
[367920415,1750965056054,-460.0,0.00021917,2]
[367920416,1750965056063,-460.49,0.00021917,2]
[367920417,1750965056072,-460.0,0.00021917,2]
[367920418,1750965056082,-460.0,0.00021917,2]
[367920419,1750965056092,-460.0,0.00021917,2]
[367920420,1750965056102,-500.0,0.00021917,2]
[367920421,1750965056111,-460.0,0.00021917,2]
[367920422,1750965056121,-460.0,0.00021917,2]
[367920423,1750965056131,-460.0,0.00021917,2]
[367920424,1750965056140,-460.0,0.00021917,2]
[367920425,1750965056150,-900.85,0.00021917,2]
[367920426,1750965056160,-460.0,0.00021917,2]
[367920427,1750965056169,-594.09,0.00021917,2]
[367920428,1750965056179,-460.0,0.00021917,2]
[367920429,1750965056188,-460.0,0.00021917,2]
[367920430,1750965056198,-460.0,0.00021917,2]
[367920431,1750965056207,-766.76,0.00021917,2]
[367920432,1750965056216,-460.0,0.00021917,2]
[367920433,1750965056226,-460.0,0.00021917,2]
[367920434,1750965056235,-460.0,0.00021917,2]
[367920435,1750965056244,-460.0,0.00021917,2]
[367920436,1750965056254,-460.0,0.00021917,2]
[367920437,1750965056263,-460.0,0.00021917,2]
[367920438,1750965056272,-460.0,0.00021917,2]
[367920439,1750965056281,-460.0,0.00021917,2]
[367920440,1750965056290,-460.0,0.00021917,2]
[367920441,1750965056300,-460.0,0.00021917,2]
[367920442,1750965056310,-460.0,0.00021917,2]
[367920443,1750965056320,-460.0,0.00021917,2]
[367920444,1750965056329,-460.0,0.00021917,2]
[367920445,1750965056338,-460.0,0.00021917,2]
[367920446,1750965056347,-460.0,0.00021917,2]
[367920447,1750965056359,-460.0,0.00021917,2]
[367920448,1750965056369,-460.0,0.00021917,2]
[367920449,1750965056378,-460.0,0.00021917,2]
[367920450,1750965056387,-460.0,0.00021917,2]
[367920451,1750965056397,-500.0,0.00021917,2]
[367920452,1750965056406,-460.0,0.00021917,2]
[367920453,1750965056416,-500.0,0.00021917,2]
[367920454,1750965056425,-460.0,0.00021917,2]
[367920455,1750965056435,-460.0,0.00021917,2]
[367920456,1750965056444,-1012.85984742,0.00021917,2]
[367920457,1750965056454,-460.0,0.00021917,2]
[367920458,1750965056463,-460.0,0.00021917,2]
[367920459,1750965056473,-460.0,0.00021917,2]
[367920460,1750965056483,-460.0,0.00021917,2]
[367920461,1750965056492,-460.0,0.00021917,2]
[367920462,1750965056501,-466.40833442,0.00021917,2]
[367920463,1750965056511,-460.0,0.00021917,2]
[367920464,1750965056521,-690.96,0.00021917,2]
[367920465,1750965056530,-460.0,0.00021917,2]
[367920466,1750965056541,-462.06058847,0.00021917,2]
[367920467,1750965056550,-460.0,0.00021917,2]
[367920468,1750965056559,-460.0,0.00021917,2]
[367920469,1750965056568,-152.4872318,0.00021917,2]
[367920470,1750965056581,-460.0,0.00021917,2]
[367920471,1750965056590,-460.0,0.00021917,2]
[367920472,1750965056600,-460.62509477,0.00021917,2]
[367920473,1750965056610,-460.0,0.00021917,2]
[367920474,1750965056620,-337.32748788,0.00021917,2]
[367920475,1750965056629,-460.0,0.00021917,2]
[367920476,1750965056638,-430.0,0.00021917,2]
[367920477,1750965056648,-460.0,0.00021917,2]
[367920478,1750965056657,-460.0,0.00021917,2]
[367920479,1750965056666,-460.0,0.00021917,2]
[367920480,1750965056675,-460.0,0.00021917,2]
[367920481,1750965056684,-465.47858194,0.00021917,2]
[367920482,1750965056693,-460.0,0.00021917,2]
[367920483,1750965056703,-510.40922611,0.00021917,2]
[367920484,1750965056712,-460.0,0.00021917,2]
[367920485,1750965056722,-460.0,0.00021917,2]
[367920486,1750965056731,-460.0,0.00021917,2]
[367920487,1750965056740,-460.0,0.00021917,2]
[367920488,1750965056749,-463.66369299,0.00021917,2]
[367920489,1750965056759,-460.0,0.00021917,2]
[367920490,1750965056768,-460.0,0.00021917,2]
[367920491,1750965056778,-463.07864817,0.00021917,2]
[367920492,1750965056787,-460.0,0.00021917,2]
[367920493,1750965056796,-460.0,0.00021917,2]
[367920494,1750965056805,-463.02196293,0.00021917,2]
[367920495,1750965056814,-460.0,0.00021917,2]
[367920496,1750965056824,-460.0,0.00021917,2]
[367920497,1750965056834,-460.0,0.00021917,2]
[367920498,1750965056843,-460.0,0.00021917,2]
[367920499,1750965056853,-460.0,0.00021917,2]
[367920500,1750965056863,-460.0,0.00021917,2]
[367920501,1750965056873,-460.0,0.00021917,2]
[367920502,1750965056882,-460.0,0.00021917,2]
[367920503,1750965056891,-460.0,0.00021917,2]
[367920504,1750965056901,-844.19,0.00021917,2]
[367920505,1750965056910,-425.27532685,0.00021917,2]
[367920506,1750965056919,-460.0,0.00021917,2]
[367920507,1750965056929,-460.0,0.00021917,2]
[367920508,1750965056938,-460.0,0.00021917,2]
[367920509,1750965056947,-460.0,0.00021917,2]
[367920510,1750965056957,-460.0,0.00021917,2]
[367920511,1750965056967,-460.0,0.00021917,2]
[367920512,1750965056976,-466.61,0.00021917,2]
[367920513,1750965056985,-460.0,0.00021917,2]
[367920514,1750965056994,-460.0,0.00021917,2]
[367920515,1750965057003,-460.0,0.00021917,2]
[367920516,1750965057013,-543.29,0.00021917,2]
[367920517,1750965057022,-1564.84,0.00021917,2]
[367920518,1750965057031,-460.0,0.00021917,2]
[367920519,1750965057040,-460.0,0.00021917,2]
[367920520,1750965057050,-460.0,0.00021917,2]
[367920521,1750965057059,-258.52815494,0.00021917,2]
[367920522,1750965057069,-432.56802118,0.00021917,2]
[367920523,1750965057079,-1250.14,0.00021917,2]
[367920524,1750965057088,-460.0,0.00021917,2]
[367920525,1750965057098,-460.0,0.00021917,2]
[367920526,1750965057108,-460.0,0.00021917,2]
[367920527,1750965057117,-357.76470952,0.00021917,2]
[367920528,1750965057127,-460.0,0.00021917,2]
[367920529,1750965057136,-443.84815153,0.00021917,2]
[367920530,1750965057146,-460.0,0.00021917,2]
[367920531,1750965057156,-460.0,0.00021917,2]
[367920532,1750965057165,-460.0,0.00021917,2]
[367920533,1750965057175,-460.0,0.00021917,2]
[367920534,1750965057184,-460.0,0.00021917,2]
[367920535,1750965057193,-460.0,0.00021917,2]
[367920536,1750965057202,-460.0,0.00021917,2]
[367920537,1750965057211,-460.0,0.00021917,2]
[367920538,1750965057221,-390.0,0.00021917,2]
[367920539,1750965057230,-460.0,0.00021917,2]
[367920540,1750965057240,-460.0,0.00021917,2]
[367920541,1750965057249,-460.0,0.00021917,2]
[367920542,1750965057258,-460.0,0.00021917,2]
[367920543,1750965057267,-460.0,0.00021917,2]
[367920544,1750965057276,-458.86380977,0.00021917,2]
[367920545,1750965057285,-460.0,0.00021917,2]
[367920546,1750965057294,-460.0,0.00021917,2]
[367920547,1750965057303,-460.0,0.00021917,2]
[367920548,1750965057312,-460.0,0.00021917,2]
[367920549,1750965057320,-460.0,0.00021917,2]
[367920550,1750965057331,-460.0,0.00021917,2]
[367920551,1750965057340,-460.0,0.00021917,2]
[367920552,1750965057349,-460.0,0.00021917,2]
[367920553,1750965057358,-460.0,0.00021917,2]
[367920554,1750965057367,-460.0,0.00021917,2]
[367920555,1750965057378,-460.0,0.00021917,2]
[367920556,1750965057389,-528.29,0.00021917,2]
[367920557,1750965057400,-460.0,0.00021917,2]
[367920558,1750965057410,-460.0,0.00021917,2]
[367920559,1750965057419,-843.4,0.00021917,2]
[367920560,1750965057428,-460.0,0.00021917,2]
[367920561,1750965057437,-460.0,0.00021917,2]
[367920562,1750965057447,-460.0,0.00021917,2]
[367920563,1750965057456,-584.35426772,0.00021917,2]
[367920564,1750965057465,-196.06695826,0.00021917,2]
[367920565,1750965057474,-392.51423927,0.00021917,2]
[367920566,1750965057483,-461.96007559,0.00021917,2]
[367920567,1750965057494,-460.0,0.00021917,2]
[367920568,1750965057504,-431.55632666,0.00021917,2]
[367920569,1750965057622,-596.26681236,0.00021917,2]
[367920570,1750965057633,-460.0,0.00021917,2]
[367920571,1750965057642,-460.0,0.00021917,2]
[367920572,1750965057652,-460.0,0.00021917,2]
[367920573,1750965057661,-460.0,0.00021917,2]
[367920574,1750965057670,-460.0,0.00021917,2]
[367920575,1750965057679,-460.0,0.00021917,2]
[367920576,1750965057689,-460.0,0.00021917,2]
[367920577,1750965057699,-460.0,0.00021917,2]
[367920578,1750965057708,-460.0,0.00021917,2]
[367920579,1750965057718,-392.50022847,0.00021917,2]
[367920580,1750965057728,-460.0,0.00021917,2]
[367920581,1750965057737,-460.0,0.00021917,2]
[367920582,1750965057746,-543.11,0.00021917,2]
[367920583,1750965057756,-480.1891551,0.00021917,2]
[367920584,1750965057766,-403.13638052,0.00021917,2]
[367920585,1750965057775,-460.0,0.00021917,2]
[367920586,1750965057784,-460.0,0.00021917,2]
[367920587,1750965057795,-460.0,0.00021917,2]
[367920588,1750965057806,-460.0,0.00021917,2]
[367920589,1750965057816,-460.0,0.00021917,2]
[367920590,1750965057827,-460.0,0.00021917,2]
[367920591,1750965057837,-460.0,0.00021917,2]
[367920592,1750965057847,-460.0,0.00021917,2]
[367920593,1750965057857,-460.0,0.00021917,2]
[367920594,1750965057867,-1286.65,0.00021917,2]
[367920595,1750965057877,-460.0,0.00021917,2]
[367920596,1750965057887,-460.0,0.00021917,2]
[367920597,1750965057896,-460.0,0.00021917,2]
[367920598,1750965057905,-460.0,0.00021917,2]
[367920599,1750965057914,-460.0,0.00021917,2]
[367920600,1750965057924,-460.0,0.00021917,2]
[367920601,1750965057934,-460.0,0.00021917,2]
[367920602,1750965057943,-417.16920053,0.00021917,2]
[367920603,1750965057955,-460.0,0.00021917,2]
[367920604,1750965057964,-460.0,0.00021917,2]
[367920605,1750965057974,-460.0,0.00021917,2]
[367920606,1750965057984,-552.03,0.00021917,2]
[367920607,1750965057993,-460.0,0.00021917,2]
[367920608,1750965058003,-460.0,0.00021917,2]
[367920609,1750965058012,-586.24,0.00021917,2]
[367920610,1750965058022,-460.0,0.00021917,2]
[367920611,1750965058031,-500.0,0.00021917,2]
[367920612,1750965058042,-460.0,0.00021917,2]
[367920613,1750965058052,-460.0,0.00021917,2]
[367920614,1750965058063,-1154.46,0.00021917,2]
[367920615,1750965058073,-460.0,0.00021917,2]
[367920616,1750965058082,-483.13498322,0.00021917,2]
[367920617,1750965058212,-275.78380646,0.00021642,2]
[367920618,1750965058221,-193.32501678,0.00021917,2]
[367920619,1750965058231,-292.49124676,0.00021917,2]
[367920620,1750965058242,-167.50875324,0.00021917,2]
[367920621,1750965058251,-486.11,0.00021917,2]
[367920622,1750965058260,-460.0,0.00021917,2]
[367920623,1750965058270,-460.0,0.00021917,2]
[367920624,1750965058279,-460.0,0.00021917,2]
[367920625,1750965058288,-460.0,0.00021917,2]
[367920626,1750965058298,-460.0,0.00021917,2]
[367920627,1750965058307,-460.0,0.00021917,2]
[367920628,1750965058316,-460.0,0.00021917,2]
[367920629,1750965058326,-712.49,0.00021917,2]
[367920630,1750965058335,-169.09626269,0.00021917,2]
[367920632,1750965254756,183.898274,0.00013699,2]
[367920695,1750966232551,-162.68423351,0.000189,2]
[367920697,1750966232562,-183.898274,0.00020187,2]
[367920699,1750966232571,-160.0,0.00020631,2]
[367920701,1750966232580,-158.493929,0.00020772,2]
[367920703,1750966232590,-158.493929,0.00020786,4]
[367920705,1750966232600,-540.28963749,0.00020795,2]
[367920718,1750966238428,-306.63359694,0.00020795,2]
[367920719,1750966238438,-160.0,0.00020795,2]
[367920720,1750966238447,-300.0,0.00020798,2]
[367920721,1750966238458,-300.0,0.00020798,2]
[367920722,1750966238467,-213.72380786,0.00020799,2]
[367920723,1750966238476,-230.24506774,0.00020799,2]
[367920724,1750966238488,-160.0,0.00020799,2]
[367920725,1750966238498,-836.92866116,0.00020799,2]
[367920726,1750966238508,-882.5388663,0.00020806,2]
[367920727,1750966238523,-49117.4611337,0.00020806,2]
[367920728,1750966238533,-207.4,0.00020806,2]
[367920729,1750966238543,-300.0,0.00020818,2]
[367920730,1750966238552,-214.88139422,0.00020824,2]
[367920731,1750966238562,-353.6040947,0.000209,2]
[367920732,1750966238573,-731.8916502,0.000209,2]
[367920733,1750966238582,-153.0,0.000209,2]
[367920734,1750966238591,-153.0,0.000209,2]
[367920735,1750966238602,-177.4452169,0.000209,2]
[367920736,1750966238611,-1149.8955254,0.000209,2]
[367920737,1750966238621,-363.5779204,0.000209,2]
[367920738,1750966238631,-1201.19848152,0.000209,4]
[367920739,1750966238641,-177.4452169,0.000209,2]
[367920740,1750966238650,-177.4452169,0.000209,2]
[367920741,1750966238659,-177.4452169,0.000209,2]
[367920742,1750966238669,-1000.0,0.00020979,2]
[367920743,1750966238678,-500.0,0.00020989,2]
[367920744,1750966238687,-500.0,0.00020989,2]
[367920745,1750966238696,-500.0,0.00020989,2]
[367920746,1750966238706,-500.0,0.00020989,2]
[367920747,1750966238716,-500.0,0.00020989,2]
[367920748,1750966238726,-500.0,0.00020989,2]
[367920749,1750966238736,-500.0,0.00020989,2]
[367920750,1750966238746,-500.0,0.00020989,2]
[367920751,1750966238755,-415.83426513,0.00020989,2]
[367920752,1750966238765,-500.0,0.00020989,2]
[367920753,1750966238775,-500.0,0.00020989,2]
[367920754,1750966238785,-500.0,0.00020989,2]
[367920755,1750966238794,-500.0,0.00020989,2]
[367920756,1750966238804,-324.26435989,0.00020989,2]
[367920757,1750966238813,-500.0,0.00020989,2]
[367920758,1750966238823,-500.0,0.00020989,2]
[367920759,1750966238833,-500.0,0.00020989,2]
[367920760,1750966238842,-500.0,0.00020989,2]
[367920761,1750966238851,-500.0,0.00020989,2]
[367920762,1750966238860,-215.01174558,0.00020989,2]
[367920763,1750966238870,-500.0,0.00020989,2]
[367920764,1750966238879,-500.0,0.00020989,2]
[367920765,1750966238888,-500.0,0.00020989,2]
[367920766,1750966238898,-500.0,0.00020989,2]
[367920767,1750966238907,-500.0,0.00020989,2]
[367920768,1750966238916,-500.0,0.00020989,2]
[367920769,1750966238925,-500.0,0.00020989,2]
[367920770,1750966238934,-500.0,0.00020989,2]
[367920771,1750966238943,-500.0,0.00020989,2]
[367920772,1750966238952,-500.0,0.00020989,2]
[367920773,1750966238962,-500.0,0.00020989,2]
[367920774,1750966238971,-500.0,0.00020989,2]
[367920775,1750966238981,-198.76070097,0.00020989,2]
[367920776,1750966238991,-7378.37,0.0002099,10]
[367920777,1750966239001,-6148.64,0.0002099,10]
[367920778,1750966239011,-58457.59474651,0.00021,2]
[367920779,1750966239019,-285.1485349,0.00021072,4]
[367920780,1750966239032,-916.04994647,0.00021072,4]
[367920781,1750966239041,-1201.19848137,0.00021245,4]
[367920783,1750966239050,-716.53866133,0.00021272,3]
[367920820,1750966240852,-64.74133867,0.00021272,3]
[367920822,1750966240862,-459.221,0.00021287,2]
[367920824,1750966240871,-535.93766133,0.00021288,2]
[367920849,1750966243559,-177.4452169,0.000209,2]
[367920850,1750966243569,-113.68761488,0.00021288,2]
[367920861,1750966246400,-4.37472379,0.00021288,2]